bitfinex/quotes_ETHUSD_20230403
["timestamp","ask_amount","ask_price","bid_price","bid_amount"]
[1680563331997,13.16714218,1812.4,1812.3,0.09649822]
[1680563332195,3.26362,1812.4,1812.3,0.09649822]
[1680563332396,3.79618624,1812.4,1812.3,0.09649822]
[1680563333316,0.81043624,1812.4,1812.3,0.09649822]
[1680563333519,1.36218624,1812.4,1812.3,0.09649822]
[1680563336711,1.73065386,1812.4,1812.3,0.09649822]
[1680563336865,11.74767604,1812.4,1812.3,0.09649822]
[1680563337067,11.74967604,1812.4,1812.3,0.09649822]
[1680563337312,2.94965386,1812.4,1812.3,0.09649822]
[1680563337517,1.36218624,1812.4,1812.3,0.09649822]
[1680563339512,11.37320842,1812.4,1812.3,0.09649822]
[1680563339715,11.37520842,1812.4,1812.3,0.09649822]
[1680563340083,2.02343624,1812.4,1812.3,0.09649822]
[1680563340418,2.57318624,1812.4,1812.3,0.09649822]
[1680563341911,0.53456624,1812.4,1812.3,0.09649822]
[1680563342319,0.81043624,1812.4,1812.3,0.09649822]
[1680563344021,2.46568624,1812.4,1812.3,0.09649822]
[1680563344174,1.36218624,1812.4,1812.3,0.09649822]
[1680563344368,7.16618624,1812.4,1812.3,0.09649822]
[1680563344620,9.93420842,1812.4,1812.3,0.09649822]
[1680563344921,11.38120842,1812.4,1812.3,0.09649822]
[1680563345814,12.59820842,1812.4,1812.3,0.09649822]
[1680563346996,3.24643624,1812.4,1812.3,0.09649822]
[1680563347166,3.79618624,1812.4,1812.3,0.09649822]
[1680563347496,1.36218624,1812.4,1812.3,0.09649822]
[1680563350164,1.35912641,1812.4,1812.3,0.09649822]
[1680563350790,0.53150641,1812.4,1812.3,0.09649822]
[1680563351489,0.27587,1812.5,1812.3,0.09649822]
[1680563351792,0.69473945,1812.7,1812.3,0.09649822]
[1680563351999,0.27585,1812.6,1812.3,0.09649822]
[1680563352556,0.58593947,1812.5,1812.3,0.09649822]
[1680563352862,0.86180947,1812.5,1812.3,0.09649822]
[1680563353073,1.00315942,1812.5,1812.3,0.09649822]
[1680563353290,2.65831942,1812.5,1812.3,0.09649822]
[1680563354373,8.46231942,1812.5,1812.3,0.09649822]
[1680563354585,8.46431942,1812.5,1812.3,0.09649822]
[1680563354799,1.55687942,1812.5,1812.3,0.09649822]
[1680563355097,0.58593947,1812.5,1812.3,0.09649822]
[1680563355665,0.58593947,1812.5,1812.4,0.00244679]
[1680563356511,0.27583,1812.7,1812.4,0.00244679]
[1680563356704,0.27585,1812.6,1812.4,0.00244679]
[1680563357578,0.82754,1812.6,1812.4,0.00244679]
[1680563357793,0.82754,1812.6,1812.3,0.09649822]
[1680563358423,0.58313411,1812.5,1812.3,0.09649822]
[1680563358581,0.85900411,1812.5,1812.3,0.09894515]
[1680563359101,0.58313411,1812.5,1812.3,0.09894515]
[1680563359625,0.8295,1812.7,1812.3,0.09894515]
[1680563359792,0.8275,1812.7,1812.3,0.09894515]
[1680563360634,1.26531583,1812.7,1812.3,0.09894515]
[1680563361327,8.28131583,1812.7,1812.3,0.09649822]
[1680563361498,8.28331583,1812.7,1812.3,0.09649822]
[1680563362591,0.5834662,1812.6,1812.3,0.09649822]
[1680563362784,0.82758,1812.5,1812.3,0.09649822]
[1680563362985,6.77268462,1812.5,1812.3,0.09649822]
[1680563363181,6.22296462,1812.5,1812.3,0.09649822]
[1680563363486,0.14310462,1812.5,1812.3,0.09649822]
[1680563363724,0.27587,1812.5,1812.3,0.09649822]
[1680563364445,0.82759,1812.5,1812.3,0.09649822]
[1680563364591,7.84859,1812.5,1812.3,0.09649822]
[1680563364786,7.85659,1812.5,1812.3,0.09649822]
[1680563365720,6.63959,1812.5,1812.3,0.09649822]
[1680563365921,0.939829,1812.4,1812.3,0.09649822]
[1680563367187,0.939829,1812.4,1812.3,1.05433773]
[1680563367622,0.939829,1812.4,1812.3,1.61856487]
[1680563368892,0.663959,1812.4,1812.3,1.61856487]
[1680563369113,0.939829,1812.4,1812.3,1.61856487]
[1680563369755,7.295579,1812.4,1812.3,1.61856487]
[1680563370060,7.297579,1812.4,1812.3,0.09649822]
[1680563371155,7.297579,1812.4,1812.3,1.05440383]
[1680563371735,0.665959,1812.4,1812.3,1.05440383]
[1680563371940,0.27587,1812.4,1812.3,1.62852059]
[1680563372155,3.27587,1812.5,1812.3,1.62852059]
[1680563372372,0.27587,1812.5,1812.4,0.95790561]
[1680563372521,0.71986909,1812.5,1812.4,0.95790561]
[1680563373363,3.5854662,1812.6,1812.3,2.09779771]
[1680563373567,0.58107056,1812.6,1812.4,1.53202237]
[1680563373873,0.58107056,1812.6,1812.5,0.95790561]
[1680563374042,0.58107056,1812.6,1812.4,2.39892021]
[1680563374375,0.58107056,1812.6,1812.5,4.86668563]
[1680563374538,0.002,1813.1,1812.5,12.57250779]
[1680563374738,0.496435,1813.4,1812.9,0.57813339]
[1680563374938,0.27574,1813.3,1813.0,0.05781334]
[1680563375275,0.82722,1813.3,1812.8,1.79713339]
[1680563375484,0.49478533,1813.2,1812.9,0.95756552]
[1680563375778,0.27577,1813.1,1812.8,0.57813339]
[1680563375963,0.27577,1813.1,1812.9,0.05781334]
[1680563376475,0.27577,1813.1,1812.8,0.57813339]
[1680563376718,0.49478533,1813.2,1812.8,1.53569899]
[1680563376922,0.77054533,1813.2,1812.8,1.53569899]
[1680563377129,0.77054533,1813.2,1812.7,5.19687978]
[1680563377416,0.77054533,1813.2,1812.8,0.95758915]
[1680563377980,0.49478533,1813.2,1812.8,0.95758915]
[1680563378227,0.77053533,1813.2,1812.8,1.53572254]
[1680563378400,0.49478533,1813.2,1812.8,1.53572254]
[1680563378600,0.49478533,1813.2,1812.8,2.33465288]
[1680563378804,0.49478533,1813.2,1812.9,0.95758915]
[1680563380198,0.49478533,1813.2,1812.8,1.0771766]
[1680563380400,0.49478533,1813.2,1812.9,0.95755301]
[1680563380598,0.49478533,1813.2,1812.9,1.16102597]
[1680563380833,0.49478533,1813.2,1812.9,0.47927296]
[1680563381402,0.49478533,1813.2,1812.9,0.20347296]
[1680563381603,11.28604966,1813.4,1812.9,0.20347296]
[1680563381935,0.82722,1813.3,1812.8,1.92047367]
[1680563382136,0.82722,1813.3,1812.9,0.95753942]
[1680563382631,0.49159542,1813.2,1812.9,0.95753942]
[1680563382835,0.76735542,1813.2,1812.9,0.95753942]
[1680563383128,0.76735542,1813.2,1812.8,1.34234028]
[1680563383332,0.49159542,1813.2,1812.9,0.13423403]
[1680563383501,0.76734542,1813.2,1812.9,0.13423403]
[1680563384293,0.76734542,1813.2,1812.8,1.34234028]
[1680563384497,1.31885542,1813.2,1812.8,1.34234028]
[1680563384699,1.31885542,1813.2,1812.8,0.54340994]
[1680563385042,7.12285542,1813.2,1812.7,0.002]
[1680563385201,7.12485542,1813.2,1812.6,0.58057992]
[1680563385397,0.71248554,1813.1,1812.6,0.58057992]
[1680563385632,0.27579,1813.0,1812.6,0.58057992]
[1680563385815,0.82736,1813.0,1812.6,0.58057992]
[1680563387444,6.63136,1813.0,1812.6,0.58057992]
[1680563387740,6.08179,1813.0,1812.6,0.58057992]
[1680563388046,1.211,1812.7,1812.2,1.48815263]
[1680563388210,7.84358,1812.5,1812.4,0.002]
[1680563388391,7.84358,1812.5,1812.2,1.49415263]
[1680563388392,8.56670711,1812.5,1812.2,0.106]
[1680563388593,3.0,1812.4,1812.2,0.1]
[1680563388830,1.12767,1812.3,1812.2,0.1]
[1680563389993,2.34467,1812.3,1812.2,0.1]
[1680563390437,8.14867,1812.3,1812.2,0.1]
[1680563390638,8.15067,1812.3,1812.2,0.1]
[1680563390937,13.23505259,1812.3,1812.2,0.1]
[1680563391150,11.14669218,1812.3,1812.2,0.1]
[1680563392351,11.17010337,1812.3,1812.2,0.1]
[1680563392508,11.59000405,1812.3,1812.2,0.05800993]
[1680563393546,7.304,1812.2,1811.8,0.1]
[1680563393842,7.304,1812.2,1811.3,0.67688685]
[1680563393843,0.82797,1811.7,1811.3,0.67688685]
[1680563393996,0.82803,1811.5,1811.3,0.67688685]
[1680563394201,5.804,1811.4,1811.3,0.1]
[1680563394446,7.84607,1811.4,1811.3,0.1]
[1680563394619,0.002,1811.4,1811.3,0.1]
[1680563394815,0.27602,1811.4,1811.3,0.05]
[1680563395399,6.35803,1811.5,1811.3,0.05]
[1680563395603,6.63405,1811.5,1811.3,0.05]
[1680563395802,0.27802,1811.5,1811.3,0.05]
[1680563396131,7.32042119,1811.6,1811.3,0.05]
[1680563396336,0.27601,1811.5,1811.3,0.05]
[1680563396541,6.63203,1811.5,1811.3,0.05]
[1680563396736,8.57002218,1811.0,1810.9,0.45735154]
[1680563396903,8.57002218,1811.0,1810.6,0.008]
[1680563396904,13.93865218,1811.0,1810.6,0.008]
[1680563397104,5.804,1810.8,1809.9,0.008]
[1680563397352,6.63248,1810.6,1810.2,0.1]
[1680563397514,6.63448,1810.6,1810.2,0.1]
[1680563397703,0.27816,1810.6,1810.2,0.1]
[1680563398041,3.0,1810.7,1810.2,0.1]
[1680563398042,6.08014,1810.7,1810.2,0.1]
[1680563398247,3.0,1810.6,1810.2,0.1]
[1680563398849,3.27615,1810.6,1810.2,0.1]
[1680563399239,3.0,1810.6,1810.2,0.1]
[1680563399654,0.27615,1810.6,1810.2,0.1]
[1680563400640,0.27618,1810.4,1810.2,0.1]
[1680563400841,0.41896767,1810.5,1810.2,0.1]
[1680563400842,0.69512767,1810.5,1810.2,0.1]
[1680563401507,1.217,1810.3,1810.2,0.1]
[1680563401703,1.49319,1810.3,1810.2,0.1]
[1680563402140,2.39619,1810.3,1810.2,0.1]
[1680563402848,10.96621218,1810.3,1810.2,0.1]
[1680563403064,5.39421218,1810.3,1810.2,0.1]
[1680563403404,2.122,1810.3,1810.2,0.1]
[1680563403651,0.02541119,1810.4,1810.2,0.1]
[1680563403953,0.02341119,1810.4,1810.2,0.1]
[1680563404260,0.41896767,1810.5,1810.2,0.1]
[1680563404604,0.69512767,1810.5,1810.2,0.1]
[1680563405945,7.925,1810.4,1810.2,0.1]
[1680563406156,7.927,1810.4,1810.2,0.1]
[1680563406347,0.27619,1810.3,1810.2,0.1]
[1680563406705,0.002,1810.4,1810.2,0.1]
[1680563406945,0.27619,1810.3,1810.2,0.1]
[1680563407143,0.42096767,1810.5,1810.2,0.1]
[1680563407354,0.27619,1810.3,1810.2,0.1]
[1680563407553,0.69835286,1810.3,1810.2,0.05778371]
[1680563408362,9.84417623,1810.3,1810.2,0.05778371]
[1680563408562,3.08276405,1810.3,1810.2,0.01574332]
[1680563408776,2.57457405,1810.3,1810.2,0.01574332]
[1680563408977,2.85076405,1810.3,1810.2,0.01574332]
[1680563409187,0.44557405,1810.3,1810.2,0.01574332]
[1680563409391,0.69835286,1810.3,1810.2,0.01574332]
[1680563409558,0.42216286,1810.3,1809.8,1.0]
[1680563409757,0.69835286,1810.3,1809.9,0.1]
[1680563410149,1.25074286,1810.3,1809.9,0.1]
[1680563410610,0.37595403,1810.2,1809.9,0.1]
[1680563416125,0.37595403,1810.2,1809.9,0.37625]
[1680563416484,2.128,1810.7,1810.0,2.76602218]
[1680563416787,0.27619,1810.4,1810.1,0.27660222]
[1680563417009,0.008,1810.7,1810.1,3.0426244]
[1680563417325,0.27614,1810.7,1810.2,2.76602218]
[1680563417625,0.40264961,1810.6,1810.3,0.27660222]
[1680563417927,0.67879961,1810.6,1810.3,0.27660222]
[1680563418431,1.23109961,1810.6,1810.1,0.27860222]
[1680563418726,1.23109961,1810.6,1810.0,1.0]
[1680563418920,1.23109961,1810.6,1810.0,3.76602218]
[1680563419122,1.23109961,1810.6,1810.0,2.76602218]
[1680563419626,1.23109961,1810.6,1809.9,5.5819]
[1680563419824,7.96541119,1810.5,1809.9,4.9499]
[1680563420127,0.82855,1810.4,1809.9,4.9479]
[1680563420433,6.63255,1810.4,1809.9,0.006]
[1680563420595,6.63255,1810.4,1809.8,1.534]
[1680563420596,6.63455,1810.4,1809.8,0.006]
[1680563420925,6.63455,1810.4,1809.8,3.037]
[1680563421137,6.63455,1810.4,1809.8,0.006]
[1680563421345,6.63455,1810.4,1809.7,1.538]
[1680563421990,6.63455,1810.4,1809.7,4.81428]
[1680563422276,0.27819,1810.4,1809.7,7.58030218]
[1680563422424,9.62845119,1810.5,1809.7,8.13487218]
[1680563422425,0.41993806,1810.3,1809.7,8.13487218]
[1680563422633,0.41993806,1810.3,1809.8,0.81348722]
[1680563422983,0.41993806,1810.3,1809.9,0.27625]
[1680563423124,0.41993806,1810.3,1809.9,3.59478218]
[1680563423528,2.43757119,1810.5,1809.9,3.04227218]
[1680563423761,2.43757119,1810.5,1810.0,0.30422722]
[1680563424031,4.09456119,1810.5,1809.8,0.81348722]
[1680563424349,4.09456119,1810.5,1809.8,3.5795094]
[1680563425074,0.008,1810.6,1809.9,2.76602218]
[1680563425232,0.82855,1810.4,1809.9,2.76602218]
[1680563426054,4.11264,1810.6,1810.3,2.76602218]
[1680563426055,0.008,1810.6,1810.3,2.76602218]
[1680563426256,0.008,1811.0,1810.1,0.008]
[1680563426471,0.82827,1811.0,1810.3,2.76602218]
[1680563426772,0.27609,1811.0,1810.3,3.59460218]
[1680563426973,0.27609,1811.0,1810.4,0.35946022]
[1680563426974,0.82827,1811.0,1810.4,0.35946022]
[1680563427831,0.83427,1811.0,1810.4,0.35946022]
[1680563428480,3.83427,1811.0,1810.4,0.35946022]
[1680563429655,3.83427,1811.0,1810.4,0.63563022]
[1680563429855,0.006,1811.0,1810.5,0.06356302]
[1680563430076,0.28209,1811.0,1810.5,0.06356302]
[1680563430758,5.81256119,1811.1,1810.5,0.33972302]
[1680563430934,5.26040119,1811.1,1810.5,0.33972302]
[1680563431135,0.03141119,1811.1,1810.6,3.04215218]
[1680563431349,3.02941119,1811.1,1810.7,0.58034522]
[1680563431545,3.02941119,1811.1,1810.7,3.0702374]
[1680563431751,0.30548119,1811.1,1810.7,3.0702374]
[1680563431948,0.30548119,1811.1,1810.8,0.30702374]
[1680563431949,0.29948119,1811.1,1810.8,0.30702374]
[1680563432365,0.85163119,1811.1,1810.6,0.002]
[1680563432589,0.85163119,1811.1,1810.3,2.94618]
[1680563432788,3.85163119,1811.1,1810.4,2.76602218]
[1680563432969,3.30548119,1811.1,1810.5,0.27615]
[1680563433280,3.30548119,1811.1,1810.5,0.58037722]
[1680563433481,3.30548119,1811.1,1810.5,0.30421722]
[1680563433782,3.29643297,1811.1,1810.5,0.58637722]
[1680563433954,3.29643297,1811.1,1810.5,0.58939645]
[1680563434150,3.29643297,1811.1,1810.6,0.05893965]
[1680563434151,2.79643297,1811.1,1810.6,0.05893965]
[1680563434370,3.62465297,1811.1,1810.6,0.05893965]
[1680563435186,3.62465297,1811.1,1810.5,0.31323645]
[1680563436071,4.8553,1811.2,1810.6,2.76602218]
[1680563436275,3.377954,1811.3,1810.8,0.27611]
[1680563436451,0.375954,1811.3,1810.8,0.27611]
[1680563436657,3.375954,1811.3,1810.7,0.27612]
[1680563436953,4.204074,1811.3,1810.7,3.0992044]
[1680563437106,8.112244,1811.3,1810.7,0.33318222]
[1680563437264,8.114244,1811.3,1810.7,0.022368]
[1680563437464,0.5625349,1811.2,1810.7,0.022368]
[1680563437694,1.1146549,1811.2,1810.7,0.022368]
[1680563437881,0.8386049,1811.2,1810.7,0.298498]
[1680563438077,0.5625349,1811.2,1810.7,0.298498]
[1680563438409,0.8385949,1811.2,1810.7,0.59328387]
[1680563438608,0.8385949,1811.2,1810.8,0.39735213]
[1680563438908,0.5625349,1811.2,1810.8,0.05932839]
[1680563439109,0.5625349,1811.2,1810.8,0.33543839]
[1680563439409,0.5625349,1811.2,1810.8,0.05932839]
[1680563440737,0.5625349,1811.2,1810.8,0.33544839]
[1680563441093,0.5625349,1811.2,1810.9,0.33846053]
[1680563441333,0.5625349,1811.2,1810.8,0.91236426]
[1680563441539,0.5625349,1811.2,1810.9,0.33837273]
[1680563441846,0.5625349,1811.2,1810.9,0.46284643]
[1680563442046,0.5625349,1811.2,1810.9,0.1244737]
[1680563445315,0.8385949,1811.2,1810.9,0.1244737]
[1680563445705,0.5625349,1811.2,1810.9,0.1244737]
[1680563446344,0.8385949,1811.2,1810.9,0.1244737]
[1680563446953,0.5625349,1811.2,1810.9,0.1244737]
[1680563447615,0.8385949,1811.2,1810.9,0.1244737]
[1680563447824,0.5625349,1811.2,1811.0,2.76602218]
[1680563448145,0.5625349,1811.2,1811.1,3.56482833]
[1680563448353,0.5625349,1811.2,1811.1,6.90776638]
[1680563448554,0.83863238,1811.5,1811.1,7.44176638]
[1680563448736,0.83863238,1811.5,1811.3,0.27604]
[1680563448924,0.83863238,1811.5,1811.3,3.38606901]
[1680563449307,0.83863238,1811.5,1811.3,3.4084296]
[1680563449506,0.46534558,1811.4,1811.3,3.4084296]
[1680563449707,0.46534558,1811.4,1811.3,3.74639134]
[1680563450537,0.46534558,1811.4,1811.3,3.4084296]
[1680563450743,0.46534558,1811.4,1811.3,0.006]
[1680563451063,0.46534558,1811.4,1811.2,1.93241]
[1680563451209,0.46534558,1811.4,1811.2,5.23643218]
[1680563451410,0.46534558,1811.4,1811.2,3.60219218]
[1680563451620,0.46534558,1811.4,1811.3,0.36021922]
[1680563451839,0.46534558,1811.4,1811.3,0.64225922]
[1680563452224,0.46534558,1811.4,1811.3,0.36621922]
[1680563452427,0.46534558,1811.4,1811.3,0.64225922]
[1680563457133,0.46534558,1811.4,1811.3,0.36621922]
[1680563457448,0.46202269,1811.4,1811.3,0.36021922]
[1680563457844,0.46202269,1811.4,1811.3,0.63625922]
[1680563458681,0.46202269,1811.4,1811.1,2.44496527]
[1680563458879,0.46202269,1811.4,1811.0,0.002]
[1680563459078,0.46202269,1811.4,1811.0,0.61311903]
[1680563459252,0.46202269,1811.4,1811.0,0.27607]
[1680563459841,0.46202269,1811.4,1811.0,0.48989929]
[1680563460380,0.46202269,1811.4,1811.0,0.21382929]
[1680563460551,0.46202269,1811.4,1811.0,0.48990929]
[1680563461376,0.46202269,1811.4,1811.0,1.04208929]
[1680563461947,0.46202269,1811.4,1811.0,3.80811147]
[1680563462147,0.46202269,1811.4,1811.1,0.71768198]
[1680563462475,0.46202269,1811.4,1811.1,3.44525638]
[1680563464738,0.46202269,1811.4,1811.1,3.44204131]
[1680563465486,0.46202269,1811.4,1811.1,3.99419131]
[1680563467937,0.46202269,1811.4,1811.1,3.44204131]
[1680563468141,0.46202269,1811.4,1811.1,3.16598131]
[1680563468349,0.46202269,1811.4,1811.2,0.31659813]
[1680563468556,0.46202269,1811.4,1811.1,0.02236305]
[1680563468788,0.46202269,1811.4,1811.1,0.29843305]
[1680563469888,0.46202269,1811.4,1810.8,0.57291587]
[1680563469889,1.29010269,1811.4,1810.8,0.57291587]
[1680563470044,0.73805269,1811.4,1810.8,0.84702587]
[1680563470243,0.73805269,1811.4,1810.9,0.3371303]
[1680563470450,0.73805269,1811.4,1810.8,0.57091587]
[1680563470878,1.29010269,1811.4,1810.8,0.90815355]
[1680563471082,1.29010269,1811.4,1810.9,0.33723768]
[1680563471284,1.29610269,1811.4,1810.8,0.57091587]
[1680563471485,1.29610269,1811.4,1810.8,1.24791313]
[1680563471694,1.29610269,1811.4,1810.9,0.33735119]
[1680563472475,1.29610269,1811.4,1810.9,0.90826706]
[1680563473353,1.29610269,1811.4,1811.0,0.33735119]
[1680563473583,1.29610269,1811.4,1810.9,0.57091587]
[1680563475792,1.29610269,1811.4,1810.9,0.90829039]
[1680563475998,1.29610269,1811.4,1811.0,0.33737452]
[1680563476292,1.29610269,1811.4,1810.9,0.57091587]
[1680563477190,0.46802269,1811.4,1811.0,0.57091587]
[1680563477363,0.46802269,1811.4,1811.0,1.18457628]
[1680563477566,0.46802269,1811.4,1811.1,0.33759041]
[1680563478399,0.46802269,1811.4,1811.0,0.57091587]
[1680563478702,0.46802269,1811.4,1811.0,3.95030631]
[1680563478919,0.46802269,1811.4,1811.1,0.73231889]
[1680563479066,0.46202269,1811.4,1811.2,3.10331044]
[1680563479271,0.46802269,1811.4,1811.2,2.76602218]
[1680563479471,0.46202269,1811.4,1811.2,0.37339687]
[1680563479725,0.46202269,1811.4,1811.1,0.57091587]
[1680563480215,2.51010269,1811.4,1811.1,0.33726858]
[1680563480431,3.62021269,1811.4,1810.9,0.86498209]
[1680563480578,3.62021269,1811.4,1811.0,0.33597448]
[1680563480777,3.62021269,1811.4,1810.8,2.01742482]
[1680563480976,2.51610269,1811.4,1810.8,2.29353482]
[1680563481215,1.68202269,1811.4,1810.9,1.47709001]
[1680563481388,1.68802269,1811.4,1811.0,0.33600792]
[1680563481778,1.68802269,1811.4,1811.0,0.61208792]
[1680563482035,1.95805269,1811.4,1811.1,0.33600792]
[1680563482195,1.96405269,1811.4,1810.9,2.01742482]
[1680563482523,1.96405269,1811.4,1810.9,5.81244443]
[1680563482676,1.96405269,1811.4,1811.0,1.20119388]
[1680563483024,1.68802269,1811.4,1811.1,0.33621179]
[1680563483222,0.46202269,1811.4,1811.2,1.16439179]
[1680563483524,0.46202269,1811.4,1811.3,0.45265097]
[1680563487636,2.51609269,1811.4,1810.9,0.86498209]
[1680563487819,2.51609269,1811.4,1810.9,2.01742482]
[1680563488020,2.51609269,1811.4,1810.9,2.35376602]
[1680563488247,2.51609269,1811.4,1811.0,0.3363412]
[1680563488402,1.96404269,1811.4,1811.1,0.3363412]
[1680563488607,1.96404269,1811.4,1810.9,2.01742482]
[1680563489035,1.96404269,1811.4,1810.9,2.35377445]
[1680563490312,1.96404269,1811.4,1811.0,1.77949609]
[1680563490511,1.96404269,1811.4,1811.1,0.914514]
[1680563490710,1.96404269,1811.4,1811.2,0.33634963]
[1680563490905,1.96404269,1811.4,1811.1,0.57816437]
[1680563490906,11.08611487,1811.4,1811.1,0.57816437]
[1680563491138,1.22,1811.2,1811.0,0.57816437]
[1680563491338,1.49606,1811.2,1811.0,0.57816437]
[1680563492258,1.22,1811.1,1811.0,0.57816437]
[1680563492414,1.49607,1811.1,1811.0,0.57816437]
[1680563492759,11.00002218,1811.1,1810.8,0.57830291]
[1680563492965,11.00002218,1811.1,1810.6,2.59824265]
[1680563492966,6.804,1810.8,1810.6,0.008]
[1680563493112,12.78502218,1810.7,1810.3,0.86745437]
[1680563493456,1.49619,1810.4,1810.2,0.86745437]
[1680563493618,1.49619,1810.4,1810.3,0.86745437]
[1680563494557,2.04855,1810.4,1810.1,0.86745437]
[1680563495842,2.04855,1810.4,1810.0,2.04643684]
[1680563496044,2.04855,1810.4,1810.0,0.88983101]
[1680563496454,2.04855,1810.4,1810.0,2.04643684]
[1680563496758,2.04855,1810.4,1810.0,0.88983101]
[1680563497320,2.04855,1810.4,1810.0,2.04643684]
[1680563497522,0.37587946,1810.3,1810.0,2.04643684]
[1680563497764,0.65207946,1810.3,1810.0,2.04643684]
[1680563497963,0.65207946,1810.3,1810.0,0.02237664]
[1680563498828,1.20446946,1810.3,1810.0,0.02237664]
[1680563499228,0.65207946,1810.3,1810.0,0.02237664]
[1680563499742,1.20446946,1810.3,1809.9,0.96745437]
[1680563500069,1.20446946,1810.3,1809.9,2.1240602]
[1680563500570,1.20446946,1810.3,1809.9,0.96745437]
[1680563501074,1.211,1810.2,1809.9,0.1]
[1680563501278,1.93358,1810.1,1809.9,0.1]
[1680563501645,0.82867,1810.1,1809.9,0.1]
[1680563501972,0.27622,1810.1,1809.9,0.1]
[1680563502468,1.211,1810.2,1809.9,0.1]
[1680563503070,1.211,1810.2,1809.9,0.67629135]
[1680563503374,1.211,1810.2,1809.9,0.86829292]
[1680563504826,1.211,1810.2,1809.9,0.67629135]
[1680563505865,1.211,1810.2,1809.9,0.1]
[1680563506073,1.211,1810.2,1809.9,0.67629135]
[1680563506478,1.211,1810.2,1809.9,0.1]
[1680563506775,2.76602218,1810.1,1809.9,0.1]
[1680563506933,0.27624,1810.0,1809.9,0.1]
[1680563507135,0.82872,1810.0,1809.9,0.1]
[1680563507575,1.213,1810.1,1809.9,0.1]
[1680563507777,1.48723,1810.1,1809.9,0.1]
[1680563508084,2.03968,1810.1,1809.9,0.1]
[1680563508233,1.211,1810.1,1809.9,0.1]
[1680563508435,10.96217946,1810.3,1809.9,0.1]
[1680563508436,12.46036946,1810.3,1809.9,0.1]
[1680563508751,13.00675946,1810.3,1809.9,0.1]
[1680563512808,21.57678164,1810.3,1809.9,0.1]
[1680563514876,18.81075946,1810.3,1809.9,0.1]
[1680563515077,12.45436946,1810.3,1809.9,0.1]
[1680563516124,11.23436946,1810.3,1809.9,0.1]
[1680563517307,10.95817946,1810.3,1809.9,0.37625]
[1680563517677,10.95817946,1810.3,1809.9,0.1]
[1680563518485,11.23437946,1810.3,1809.9,0.1]
[1680563518727,0.65406946,1810.3,1809.9,2.86602218]
[1680563518882,0.65206946,1810.3,1809.9,3.19248931]
[1680563519082,0.37587946,1810.3,1809.9,3.19248931]
[1680563519280,0.37210723,1810.3,1810.0,3.98602218]
[1680563519595,0.37210723,1810.3,1810.1,0.39860222]
[1680563519815,0.37210723,1810.3,1810.1,3.1646244]
[1680563520553,0.27616,1810.5,1810.1,3.1646244]
[1680563520763,0.27616,1810.5,1810.0,4.8901]
[1680563521064,0.82849,1810.5,1810.0,4.8841]
[1680563521359,0.82849,1810.5,1810.0,4.8881]
[1680563521654,0.32913485,1810.4,1810.0,4.8881]
[1680563521805,0.32913485,1810.4,1810.0,5.41975671]
[1680563522012,0.32913485,1810.4,1810.0,8.46401889]
[1680563522239,0.32913485,1810.4,1810.0,8.18777889]
[1680563522439,0.32913485,1810.4,1810.0,8.46401889]
[1680563522756,0.27617,1810.5,1810.0,8.21015553]
[1680563522937,0.96614779,1810.6,1810.1,0.82101555]
[1680563525367,2.18114779,1810.6,1810.0,4.91247664]
[1680563525543,2.18114779,1810.6,1810.0,4.91047664]
[1680563527570,1.534278,1810.5,1810.0,0.02837664]
[1680563527779,0.82855,1810.4,1810.0,0.02237664]
[1680563528101,2.362788,1810.5,1810.0,0.02237664]
[1680563528262,12.538788,1810.5,1810.0,0.02237664]
[1680563528472,12.540788,1810.5,1810.0,0.59866799]
[1680563528666,12.540788,1810.5,1810.0,0.60466799]
[1680563529072,12.540788,1810.5,1810.0,0.60266799]
[1680563530174,11.988458,1810.5,1810.0,0.60266799]
[1680563530621,11.988458,1810.5,1810.0,0.60466799]
[1680563530974,11.988458,1810.5,1810.1,0.57629135]
[1680563532179,10.768458,1810.5,1810.1,0.57629135]
[1680563532422,10.768438,1810.5,1810.1,0.57629135]
[1680563533116,10.492278,1810.5,1810.1,0.57629135]
[1680563533315,10.768448,1810.5,1810.1,0.57629135]
[1680563533474,10.492278,1810.5,1810.1,0.57629135]
[1680563533671,0.316278,1810.5,1810.1,1.69545717]
[1680563533922,0.316278,1810.5,1810.2,0.57629135]
[1680563533923,0.314278,1810.5,1810.2,0.57629135]
[1680563534083,0.314278,1810.5,1810.3,0.27619]
[1680563534271,0.314278,1810.5,1810.3,0.57629135]
[1680563535679,2.04884874,1810.7,1810.3,0.57629135]
[1680563535917,1.77270874,1810.7,1810.3,0.57629135]
[1680563536124,1.91214305,1810.7,1810.3,0.57629135]
[1680563536326,2.18827305,1810.7,1810.3,0.57629135]
[1680563536889,1.91214305,1810.7,1810.4,1.44374572]
[1680563537084,2.18827305,1810.7,1810.4,1.44374572]
[1680563537324,2.18828305,1810.7,1810.4,1.44374572]
[1680563537527,1.91214305,1810.7,1810.4,1.44374572]
[1680563537829,2.18827305,1810.7,1810.4,1.44374572]
[1680563538031,1.91214305,1810.7,1810.4,1.44374572]
[1680563538196,2.18827305,1810.7,1810.4,1.44374572]
[1680563540890,7.015,1810.5,1810.4,0.57629135]
[1680563541124,1.20967837,1810.5,1810.4,0.57629135]
[1680563541322,1.20767837,1810.5,1810.4,0.57629135]
[1680563542499,1.52038637,1810.5,1810.4,0.57629135]
[1680563545196,0.312708,1810.5,1810.4,0.57629135]
[1680563545723,0.588868,1810.5,1810.4,0.57629135]
[1680563546292,0.312708,1810.5,1810.4,0.57629135]
[1680563546938,0.588868,1810.5,1810.4,0.57629135]
[1680563547256,0.312708,1810.5,1810.4,0.57629135]
[1680563547533,0.588868,1810.5,1810.4,0.57629135]
[1680563547906,0.312708,1810.5,1810.4,0.57629135]
[1680563549505,1.91714305,1810.7,1810.4,0.57629135]
[1680563550296,0.55770874,1810.7,1810.4,1.97996088]
[1680563550644,7.8097,1810.8,1810.5,0.57629135]
[1680563550842,3.14666028,1810.8,1810.5,0.57629135]
[1680563551011,3.13866028,1810.8,1810.5,0.57629135]
[1680563551402,3.41478028,1810.8,1810.5,0.57629135]
[1680563551600,3.13866028,1810.8,1810.5,0.57629135]
[1680563551836,3.41478028,1810.8,1810.5,0.57629135]
[1680563552144,4.62978028,1810.8,1810.5,0.57629135]
[1680563552513,4.35366028,1810.8,1810.5,0.57629135]
[1680563553106,5.19235675,1810.8,1810.5,0.57629135]
[1680563553306,4.92423675,1810.8,1810.5,0.57629135]
[1680563553536,4.92223675,1810.8,1810.5,0.57629135]